bitfinex-derivatives/quotes_SOLF0:USTF0_20260310
["timestamp","ask_amount","ask_price","bid_price","bid_amount"]
[1773160099334,201.419,88.651,88.529,5.0]
[1773160099335,50.01320254,88.707,88.543,33.97]
[1773160099541,142.65997522,88.708,88.529,5.0]
[1773160099542,50.01320254,88.659,88.529,5.0]
[1773160099741,50.01320254,88.635,88.588,10.156]
[1773160100648,50.01320254,88.635,88.595,10.156]
[1773160100840,50.01320254,88.635,88.564,5.0]
[1773160101146,50.01320254,88.635,88.56,8.73357879]
[1773160101542,50.01320254,88.635,88.53,8.73357879]
[1773160101744,50.15166252,88.616,88.53,8.73357879]
[1773160102148,10.154,88.613,88.53,8.73357879]
[1773160102846,50.15166252,88.616,88.57,10.158]
[1773160103352,50.15166252,88.616,88.53,8.73357879]
[1773160104047,50.14149604,88.626,88.53,8.73357879]
[1773160105147,50.14243755,88.623,88.55,8.73357879]
[1773160105346,50.14243755,88.641,88.55,8.73357879]
[1773160105554,50.14243755,88.641,88.57,8.73357879]
[1773160105752,50.14243755,88.641,88.593,10.156]
[1773160106945,50.15221175,88.638,88.562,5.0]
[1773160107148,50.15221175,88.638,88.54,8.73357879]
[1773160107350,60.30716152,88.613,88.567,10.159]
[1773160107550,50.15316152,88.599,88.509,20.331]
[1773160109057,50.15316152,88.599,88.477,20.02501647]
[1773160109058,8.73357879,88.74,88.57,8.73357879]
[1773160109253,8.73357879,88.67,88.57,8.73357879]
[1773160109958,8.73357879,88.65,88.557,10.01250823]
[1773160110253,8.73357879,88.63,88.534,10.01250823]
[1773160110656,8.73357879,88.63,88.537,10.01250823]
[1773160110857,8.73357879,88.63,88.534,10.01250823]
[1773160111056,41.64224513,88.609,88.527,10.01250823]
[1773160111261,41.64224513,88.609,88.534,10.01250823]
[1773160111661,41.64224513,88.609,88.56,10.16]
[1773160112057,41.64559074,88.629,88.534,10.01250823]
[1773160112262,41.64559074,88.629,88.583,10.157]
[1773160112663,41.64559074,88.629,88.553,10.01250823]
[1773160112959,41.64559074,88.629,88.597,10.155]
[1773160113462,41.64559074,88.629,88.55,8.73357879]
[1773160113463,41.64559074,88.629,88.589,10.156]
[1773160114862,41.64559074,88.629,88.566,10.01250823]
[1773160115065,41.64559074,88.629,88.568,10.01250823]
[1773160115367,41.64559074,88.629,88.573,10.01250823]
[1773160115971,41.64559074,88.629,88.561,10.01250823]
[1773160116166,41.64559074,88.629,88.588,10.156]
[1773160117872,41.64016543,88.628,88.571,10.01250823]
[1773160118370,41.64016543,88.628,88.574,10.01250823]
[1773160118571,41.64230072,88.649,88.591,0.07116964]
[1773160118770,41.64230072,88.649,88.591,10.08367787]
[1773160119164,41.64230072,88.649,88.593,10.01250823]
[1773160119866,41.64337084,88.678,88.613,10.01250823]
[1773160120066,41.64337084,88.678,88.625,10.01250823]
[1773160120269,41.64337084,88.678,88.622,10.01250823]
[1773160120666,41.64337084,88.678,88.636,10.151]
[1773160121869,41.63811358,88.669,88.622,10.01250823]
[1773160122167,41.63811358,88.669,88.61,10.01250823]
[1773160122570,41.62855996,88.667,88.612,10.154]
[1773160122965,41.62855996,88.667,88.601,10.01250823]
[1773160123173,41.62951635,88.649,88.59,10.01250823]
[1773160123566,41.62951635,88.649,88.591,10.01250823]
[1773160124171,10.15,88.643,88.59,10.01250823]
[1773160124374,41.64918686,88.639,88.576,10.01250823]
[1773160124771,41.64918686,88.639,88.535,20.325]
[1773160124772,41.64918686,88.619,88.567,10.159]
[1773160125166,41.64918686,88.619,88.566,10.01250823]
[1773160125367,41.64918686,88.619,88.513,20.33]
[1773160125368,41.65018702,88.596,88.534,13.35001098]
[1773160125567,41.65018702,88.596,88.543,13.35001098]
[1773160125873,41.65018702,88.596,88.547,10.161]
[1773160126066,41.65018702,88.596,88.533,13.35001098]
[1773160126663,41.65018702,88.596,88.556,0.07127595]
[1773160127869,36.65341598,88.594,88.537,10.162]
[1773160128066,36.65341598,88.594,88.528,10.163]
[1773160128573,36.60096884,88.619,88.531,13.35001098]
[1773160128772,36.60096884,88.619,88.535,13.35001098]
[1773160128973,36.60202415,88.596,88.534,10.162]
[1773160129179,36.60202415,88.589,88.518,13.35001098]
[1773160129477,36.60202415,88.589,88.517,13.35001098]
[1773160129679,36.60202415,88.569,88.51,13.35001098]
[1773160129981,29.92701866,88.529,88.42,8.73357879]
[1773160130277,29.92701866,88.529,88.44,8.73357879]
[1773160130983,29.92679694,88.519,88.42,8.73357879]
[1773160132081,8.73357879,88.52,88.442,10.173]
[1773160132082,29.84904578,88.507,88.442,10.173]
[1773160132284,29.84904578,88.499,88.4,8.73357879]
[1773160132481,29.84904578,88.499,88.413,5.0]
[1773160132883,29.84904578,88.499,88.43,10.174]
[1773160133381,29.84990312,88.489,88.43,10.174]
[1773160133582,29.84990312,88.489,88.419,10.176]
[1773160134779,29.84990312,88.489,88.42,8.73357879]
[1773160135186,29.84990312,88.489,88.413,5.0]
[1773160135486,29.84990312,88.489,88.46,0.03344073]
[1773160135692,29.84990312,88.489,88.4,8.73357879]
[1773160136194,29.84838367,88.485,88.38,8.73357879]
[1773160136387,29.84838367,88.485,88.4,8.73357879]
[1773160136887,29.84838367,88.485,88.435,10.174]
[1773160138893,29.84838367,88.485,88.408,5.0]
[1773160139189,29.84838367,88.485,88.38,8.73357879]
[1773160140088,29.91921672,88.469,88.383,5.0]
[1773160140489,29.91921672,88.438,88.376,10.181]
[1773160140695,8.73357879,88.43,88.358,5.0]
[1773160140895,8.73357879,88.43,88.33,8.73357879]
[1773160140896,29.91921672,88.429,88.33,8.73357879]
[1773160141095,29.92029026,88.409,88.31,8.73357879]
[1773160141397,8.73357879,88.43,88.286,1.96435375]
[1773160141398,29.92029026,88.389,88.29,8.73357879]
[1773160141792,29.92029026,88.389,88.31,8.73357879]
[1773160141992,29.92029026,88.389,88.29,8.73357879]
[1773160142398,29.95656281,88.387,88.321,10.187]
[1773160143398,8.73357879,88.43,88.27,8.73357879]
[1773160143399,29.95773409,88.369,88.27,8.73357879]
[1773160143597,29.95773409,88.349,88.25,8.73357879]
[1773160144092,29.95773409,88.349,88.288,10.191]
[1773160144301,29.95773409,88.349,88.25,8.73357879]
[1773160144593,8.73357879,88.37,88.23,8.73357879]
[1773160144594,30.0049591,88.329,88.23,8.73357879]
[1773160145287,30.00626025,88.327,88.254,10.195]
[1773160145495,30.00626025,88.327,88.184,180.76]
[1773160145697,30.00626025,88.327,88.22,8.73357879]
[1773160145993,30.00626025,88.327,88.253,10.195]
[1773160146599,30.00626025,88.327,88.266,10.193]
[1773160146893,30.00626025,88.327,88.24,8.73357879]
[1773160147085,30.00626025,88.327,88.276,10.192]
[1773160147290,30.00626025,88.327,88.24,8.73357879]
[1773160147694,30.00626025,88.327,88.272,10.193]
[1773160149000,30.02179506,88.363,88.285,10.191]
[1773160150398,30.02179506,88.363,88.295,10.19]
[1773160150995,30.00492497,88.361,88.227,158.64]
[1773160151198,30.00611588,88.349,88.26,8.73357879]
[1773160151492,30.00611588,88.347,88.27,10.193]
[1773160151697,30.00611588,88.347,88.24,8.73357879]
[1773160151895,30.00611588,88.329,88.24,8.73357879]
[1773160153198,30.00611588,88.329,88.258,10.194]
[1773160153493,30.00611588,88.329,88.24,8.73357879]
[1773160153693,8.79632194,88.32,88.23,8.79632194]
[1773160153994,30.03963338,88.319,88.257,10.194]
[1773160154193,30.03963338,88.319,88.25,8.79632194]
[1773160155195,30.03963338,88.319,88.275,10.192]
[1773160156090,30.02726537,88.352,88.284,10.191]
[1773160156296,30.02726537,88.339,88.25,8.79632194]
[1773160156496,30.02726537,88.339,88.217,1.97116324]
[1773160156699,30.02726537,88.339,88.24,8.79632194]
[1773160156998,30.02726537,88.339,88.297,0.03378143]
[1773160157798,30.02842169,88.416,88.32,17.59264388]
[1773160157994,30.02842169,88.416,88.36,8.79632194]
[1773160158200,30.02842169,88.416,88.376,10.181]
[1773160158602,30.02842169,88.416,88.36,8.79632194]
[1773160159504,30.0500962,88.449,88.385,10.18]
[1773160159704,30.0500962,88.449,88.322,158.47]
[1773160159705,30.0500962,88.449,88.38,8.79632194]
[1773160161509,30.0500962,88.449,88.4,10.178]
[1773160162499,30.0500962,88.449,88.409,10.177]
[1773160162798,30.0500962,88.449,88.37,8.79632194]
[1773160163003,30.0500962,88.449,88.385,10.18]
[1773160163201,30.0500962,88.449,88.37,8.79632194]
[1773160163400,30.0500962,88.449,88.315,20.376]
[1773160163401,30.0500962,88.449,88.36,8.79632194]
[1773160163601,30.0500962,88.449,88.382,10.18]
[1773160164007,30.02046281,88.446,88.36,8.79632194]
[1773160164198,30.02046281,88.446,88.381,10.18]
[1773160165003,30.02046281,88.446,88.293,158.521]
[1773160165004,158.034,88.566,88.362,158.398]
[1773160165303,30.04443364,88.539,88.44,8.79632194]
[1773160166503,30.02679463,88.519,88.425,5.0]
[1773160166704,30.02679463,88.519,88.38,8.79632194]
[1773160166705,30.02679463,88.519,88.41,8.79632194]
[1773160167102,30.02679463,88.511,88.429,10.175]
[1773160167505,30.02679463,88.511,88.43,8.79632194]
[1773160168406,29.91131574,88.509,88.43,8.79632194]
[1773160169211,29.91199662,88.506,88.41,8.79632194]
[1773160170005,29.91199662,88.506,88.44,10.173]
[1773160171209,29.91255976,88.489,88.351,20.368]
[1773160171410,29.91255976,88.489,88.38,8.79632194]
[1773160172807,10.171,88.461,88.389,10.179]
[1773160173013,29.9144161,88.46,88.389,10.179]
[1773160173402,29.9144161,88.46,88.38,8.79632194]
[1773160173811,29.9144161,88.46,88.4,10.178]
[1773160174014,29.90153203,88.458,88.38,8.79632194]
[1773160174809,29.90153203,88.453,88.36,8.79632194]
[1773160175808,29.90153203,88.453,88.363,5.0]
[1773160176210,29.90153203,88.453,88.38,8.79632194]
[1773160176805,29.90153203,88.453,88.408,10.177]
[1773160177610,29.90153203,88.453,88.398,10.178]
[1773160179709,10.172,88.451,88.389,10.179]
[1773160179913,29.89515839,88.45,88.389,10.179]
[1773160180315,29.98937697,88.448,88.38,10.18]
[1773160180515,29.98937697,88.446,88.34,8.79632194]
[1773160180715,29.98937697,88.444,88.36,8.79632194]
[1773160180909,29.98937697,88.443,88.38,10.18]
[1773160181310,29.98937697,88.443,88.36,8.79632194]
[1773160181515,29.98937697,88.443,88.389,10.179]
[1773160181713,29.98937697,88.443,88.36,8.79632194]
[1773160182213,29.98937697,88.443,88.393,10.179]
[1773160182814,29.98937697,88.443,88.401,10.178]
[1773160183513,29.98937697,88.443,88.41,10.177]
[1773160183913,29.98937697,88.443,88.38,8.79632194]
[1773160184117,30.02709306,88.468,88.38,8.79632194]
[1773160184717,30.02709306,88.466,88.415,10.176]
[1773160185516,30.02709306,88.466,88.38,8.79632194]
[1773160185719,30.02709306,88.466,88.406,10.177]
[1773160186219,30.0355096,88.464,88.414,10.176]
[1773160187718,30.0355096,88.464,88.423,10.175]
[1773160188118,8.79632194,88.49,88.423,10.175]
[1773160188119,10.169,88.481,88.423,10.175]
[1773160188311,30.09773244,88.48,88.423,10.175]
[1773160189022,30.09857314,88.477,88.423,10.175]
[1773160190017,30.09857314,88.477,88.43,10.174]
[1773160190721,30.09857314,88.477,88.422,10.175]
[1773160191320,30.09857314,88.477,88.4,8.79632194]
[1773160191516,10.51512044,88.581,88.386,20.359]
[1773160191517,30.10865679,88.496,88.42,8.79632194]
[1773160191821,30.10865679,88.496,88.44,8.79632194]
[1773160192019,30.11929151,88.522,88.44,8.79632194]
[1773160193424,25.03511089,88.511,88.44,8.79632194]
[1773160193622,25.03511089,88.511,88.42,8.79632194]
[1773160194421,24.98503117,88.491,88.42,8.79632194]
[1773160195223,24.98594358,88.49,88.42,8.79632194]
[1773160197827,24.98594358,88.49,88.446,10.173]
[1773160198027,24.98594358,88.49,88.42,8.79632194]
[1773160198028,8.78285839,88.501,88.42,8.79632194]
[1773160198327,25.01045987,88.499,88.42,8.79632194]
[1773160198528,25.01045987,88.498,88.42,8.79632194]
[1773160198829,25.01045987,88.497,88.42,8.79632194]
[1773160199028,25.01045987,88.496,88.42,8.79632194]
[1773160199231,8.78285839,88.495,88.42,8.79632194]
[1773160199429,8.78285839,88.494,88.45,10.172]
[1773160199625,8.78285839,88.493,88.45,10.172]
[1773160199824,25.01045987,88.496,88.45,10.172]
[1773160199825,8.78285839,88.492,88.45,10.172]
[1773160200021,8.78285839,88.491,88.44,8.79632194]
[1773160200222,25.02972151,88.514,88.46,8.79632194]
[1773160200426,25.02972151,88.512,88.433,10.27805458]
[1773160200725,25.02972151,88.51,88.42,8.79632194]
[1773160200931,25.02972151,88.504,88.44,8.79632194]
[1773160201122,25.03064561,88.502,88.427,10.27805458]
[1773160201321,25.03064561,88.483,88.43,10.174]
[1773160201521,25.03064561,88.481,88.43,10.174]
[1773160201725,25.03064561,88.479,88.42,8.79632194]
[1773160201929,25.03064561,88.477,88.415,10.27805458]
[1773160202226,25.06314484,88.475,88.423,10.27805458]
[1773160202427,33.90409676,88.474,88.439,10.173]
[1773160202629,8.84095192,88.473,88.425,10.27805458]
[1773160202827,8.84095192,88.472,88.424,10.27805458]
[1773160203027,8.84095192,88.471,88.425,10.27805458]
[1773160203228,8.84095192,88.47,88.426,10.27805458]
[1773160203424,8.84095192,88.469,88.43,10.27805458]
[1773160203624,8.84095192,88.468,88.441,10.173]
[1773160203830,8.84095192,88.468,88.42,8.79632194]
[1773160203831,8.84095192,88.467,88.429,10.27805458]
[1773160204031,0.00095192,88.466,88.43,10.27805458]
[1773160204227,25.06410506,88.494,88.456,10.171]
[1773160204736,25.06410506,88.494,88.435,10.27805458]
[1773160204931,25.06410506,88.494,88.436,10.27805458]
[1773160205233,25.06410506,88.494,88.427,10.27805458]
[1773160205533,24.98254622,88.484,88.423,10.27805458]
[1773160205730,24.98254622,88.484,88.421,10.27805458]
[1773160205928,24.98254622,88.484,88.4,8.79632194]
[1773160205929,24.98254622,88.484,88.418,10.27805458]
[1773160206123,24.98254622,88.484,88.437,10.174]
[1773160206523,24.98254622,88.484,88.421,10.27805458]
[1773160206725,24.98959244,88.519,88.439,10.27805458]
[1773160207528,24.99037482,88.513,88.449,10.27805458]
[1773160207730,24.99037482,88.513,88.44,10.27805458]
[1773160208032,24.99037482,88.513,88.435,10.27805458]
[1773160208535,24.98170676,88.488,88.44,10.173]
[1773160209329,24.98245732,88.486,88.428,10.27805458]
[1773160209535,24.98245732,88.479,88.408,10.27805458]
[1773160210236,24.98245732,88.479,88.407,10.27805458]
[1773160210431,24.99261138,88.461,88.4,10.27805458]
[1773160210640,24.99261138,88.461,88.408,10.27805458]
[1773160211639,24.99261138,88.461,88.403,10.27805458]
[1773160211836,24.99261138,88.461,88.408,10.27805458]
[1773160212236,24.99261138,88.461,88.409,10.27805458]
[1773160212437,24.99261138,88.461,88.408,10.27805458]
[1773160213441,24.99294092,88.498,88.43,8.79632194]
[1773160213643,24.99294092,88.498,88.431,10.27805458]
[1773160213939,24.99294092,88.496,88.431,10.27805458]
[1773160214135,24.99294092,88.496,88.418,10.27805458]
[1773160214336,24.99294092,88.496,88.42,10.27805458]
[1773160214730,24.93738537,88.488,88.42,10.27805458]
[1773160214937,24.93738537,88.488,88.419,10.27805458]
[1773160215139,24.93738537,88.488,88.417,10.27805458]
[1773160215741,24.93783933,88.477,88.424,10.175]
[1773160215944,24.93783933,88.475,88.424,10.175]
[1773160216142,24.82408514,88.473,88.415,10.27805458]
[1773160216343,8.73320047,88.472,88.417,10.27805458]
[1773160216638,24.82408514,88.47,88.417,10.27805458]
[1773160216836,24.82408514,88.468,88.393,10.27805458]
[1773160217031,24.82408514,88.466,88.395,10.27805458]
[1773160217237,24.82440107,88.532,88.46,8.76191087]
[1773160218243,24.82440107,88.532,88.482,10.168]
[1773160218442,24.82440107,88.532,88.471,10.27805458]
[1773160218736,24.82440107,88.532,88.467,10.27805458]
[1773160218943,24.82440107,88.532,88.465,10.27805458]
[1773160219136,24.82440107,88.532,88.481,10.169]
[1773160219531,24.82440107,88.532,88.463,10.27805458]
[1773160219735,24.82440107,88.532,88.488,10.168]
[1773160221140,24.82440107,88.532,88.479,10.169]
[1773160221839,24.82440107,88.532,88.48,8.76191087]
[1773160222037,24.80576677,88.579,88.48,8.76191087]
[1773160222241,24.81310128,88.559,88.47,19.03996545]
[1773160222641,24.81310128,88.557,88.501,10.166]
[1773160222943,24.81310128,88.557,88.47,19.03996545]
[1773160222944,24.81310128,88.557,88.472,10.27805458]
[1773160223140,24.81310128,88.557,88.47,8.76191087]
[1773160223537,24.81310128,88.557,88.47,19.03996545]
[1773160224135,24.81310128,88.557,88.47,8.76191087]
[1773160224336,24.84668426,88.555,88.47,19.03996545]
[1773160224539,24.84668426,88.555,88.49,8.76191087]
[1773160225740,24.84699207,88.599,88.491,10.27805458]
[1773160226241,24.84661579,88.573,88.485,10.27805458]
[1773160226443,24.84661579,88.573,88.48,8.76191087]
[1773160226939,20.31,88.602,88.46,8.76191087]
[1773160226940,24.84661579,88.543,88.46,8.76191087]
[1773160227941,24.84691578,88.54,88.489,10.168]
[1773160228642,24.84691578,88.54,88.46,8.76191087]
[1773160228643,24.82017379,88.538,88.48,10.169]
[1773160228838,24.82017379,88.538,88.463,10.27805458]
[1773160229434,24.82017379,88.538,88.468,10.27805458]
[1773160230141,24.82017379,88.538,88.467,10.27805458]
[1773160230339,24.82017379,88.538,88.499,10.166]
[1773160230540,24.82017379,88.538,88.467,10.27805458]
[1773160230541,24.79015066,88.559,88.48,8.76191087]
[1773160231145,24.79038357,88.558,88.499,10.167]
[1773160231338,24.79038357,88.558,88.46,8.76191087]
[1773160232243,20.315,88.581,88.447,10.27805458]
[1773160232244,24.7936536,88.533,88.447,10.27805458]
[1773160232443,24.7936536,88.533,88.441,10.27805458]
[1773160232641,24.7936536,88.533,88.44,8.76191087]
[1773160232642,24.7936536,88.533,88.446,10.27805458]
[1773160232843,24.7936536,88.533,88.444,10.27805458]
[1773160233443,24.7936536,88.533,88.44,8.76191087]
[1773160233444,24.7936536,88.533,88.45,10.27805458]
[1773160234148,24.7938847,88.53,88.446,10.27805458]
[1773160234346,24.7938847,88.53,88.447,10.27805458]
[1773160234543,24.7938847,88.53,88.45,10.27805458]
[1773160235345,24.7938847,88.53,88.479,10.169]
[1773160235737,24.7938847,88.53,88.45,10.27805458]
[1773160235938,24.81777974,88.521,88.446,10.27805458]
[1773160236139,24.81777974,88.521,88.445,10.27805458]
[1773160236343,24.81777974,88.521,88.446,10.27805458]
[1773160236646,24.81777974,88.521,88.45,10.27805458]
[1773160236945,24.81777974,88.521,88.446,10.27805458]
[1773160237340,24.81777974,88.521,88.445,10.27805458]
[1773160237746,24.81777974,88.521,88.474,10.169]
[1773160238248,24.81777974,88.521,88.455,10.27805458]
[1773160238543,24.81777974,88.521,88.456,10.27805458]
[1773160238741,24.81777974,88.521,88.489,10.168]
[1773160239137,24.81777974,88.521,88.461,10.27805458]
[1773160239338,24.81777974,88.521,88.46,19.03996545]
[1773160239544,24.81777974,88.521,88.461,10.27805458]
[1773160240248,24.81777974,88.521,88.479,10.169]
[1773160243951,24.81777974,88.521,88.471,10.17]
[1773160244247,10.5098763,88.574,88.443,20.346]
[1773160244248,24.94679605,88.559,88.465,10.27805458]
[1773160244551,24.94679605,88.549,88.481,10.27805458]
[1773160244750,24.94679605,88.549,88.47,8.76191087]
[1773160244751,24.94679605,88.549,88.479,10.27805458]
[1773160244942,24.94679605,88.549,88.496,10.167]
[1773160245149,24.94679605,88.549,88.481,10.27805458]
[1773160245349,24.94679605,88.549,88.479,10.27805458]
[1773160245550,24.94679605,88.549,88.48,10.27805458]
[1773160245750,24.94679605,88.549,88.478,10.27805458]
[1773160245947,10.162,88.536,88.482,10.168]
[1773160246153,24.94711775,88.535,88.482,10.168]
[1773160247455,24.98687615,88.533,88.482,10.168]
[1773160247753,24.98687615,88.533,88.475,10.27805458]
[1773160248348,24.98687615,88.533,88.47,10.27805458]
[1773160248545,24.98687615,88.533,88.469,10.27805458]
[1773160248850,24.91320846,88.531,88.481,10.169]
[1773160249046,24.91320846,88.531,88.469,10.27805458]
[1773160249251,24.91320846,88.531,88.456,10.27805458]
[1773160250149,24.91320846,88.531,88.457,10.27805458]
[1773160250355,24.89401666,88.53,88.473,10.169]
[1773160250751,24.89401666,88.53,88.457,10.27805458]
[1773160251056,24.89401666,88.53,88.48,10.169]
[1773160251451,24.89426668,88.527,88.48,10.169]
[1773160252055,24.89426668,88.527,88.46,10.27805458]
[1773160252354,24.89426668,88.527,88.456,10.27805458]
[1773160253456,24.89663358,88.526,88.479,10.169]
[1773160254053,24.91107885,88.521,88.47,10.17]
[1773160255453,24.9113282,88.519,88.47,10.17]
[1773160255957,24.9113282,88.519,88.477,10.169]
[1773160256552,24.91826419,88.53,88.476,10.169]
[1773160257360,10.164,88.522,88.476,10.169]
[1773160257659,24.91851116,88.521,88.476,10.169]
[1773160259349,24.91851116,88.521,88.482,10.168]
[1773160262258,10.5098763,88.595,88.5,8.76191087]
[1773160262557,24.95653615,88.594,88.532,10.27805458]
[1773160262762,24.95653615,88.579,88.519,10.27805458]
[1773160262954,24.95653615,88.579,88.524,10.27805458]
[1773160263152,24.95653615,88.579,88.52,10.27805458]
[1773160263354,24.95653615,88.579,88.53,10.163]
[1773160264152,24.95653615,88.579,88.538,10.162]
[1773160264356,24.95653615,88.579,88.52,10.27805458]
[1773160265254,24.95653615,88.579,88.518,10.27805458]
[1773160266057,10.158,88.578,88.529,10.163]
[1773160266261,24.93290393,88.577,88.513,10.27805458]
[1773160266457,178.6230866,88.652,88.51,8.76191087]
[1773160266458,10.154,88.608,88.556,10.16]
[1773160266653,24.93290393,88.607,88.543,10.27805458]
[1773160266851,24.93290393,88.607,88.537,10.27805458]
[1773160267050,8.76191087,88.63,88.553,10.16]
[1773160267051,24.93312699,88.605,88.553,10.16]
[1773160267564,24.93312699,88.605,88.538,10.27805458]
[1773160267865,24.93312699,88.605,88.553,10.16]
[1773160268862,24.94036951,88.587,88.531,10.27805458]
[1773160269063,24.94036951,88.587,88.526,10.27805458]
[1773160269263,24.94036951,88.587,88.524,10.27805458]
[1773160269854,24.94036951,88.587,88.527,10.163]
[1773160270066,24.94036951,88.587,88.512,10.27805458]
[1773160270267,24.94036951,88.587,88.513,10.27805458]
[1773160270658,24.94036951,88.587,88.535,10.162]
[1773160270659,24.88203623,88.586,88.535,10.162]
[1773160270969,24.88203623,88.586,88.51,8.76191087]
[1773160272264,24.88203623,88.586,88.511,10.27805458]
[1773160272460,24.88953783,88.582,88.526,10.163]
[1773160273269,24.88972413,88.579,88.526,10.163]
[1773160273668,24.88972413,88.579,88.534,10.163]
[1773160275667,24.88972413,88.579,88.525,10.163]
[1773160275868,24.88972413,88.579,88.502,10.27805458]
[1773160276971,24.78841908,88.568,88.508,10.165]
[1773160277774,24.7885367,88.563,88.5,10.166]
[1773160279368,8.74354623,88.59,88.5,10.166]
[1773160279369,24.34104861,88.558,88.5,10.166]
[1773160279569,24.34104861,88.558,88.51,10.165]
[1773160279864,24.34104861,88.558,88.497,10.27805458]
[1773160280271,24.34104861,88.558,88.499,10.27805458]
[1773160280474,10.5098763,88.629,88.499,10.27805458]
[1773160280475,24.34083008,88.574,88.51,19.02160081]
[1773160280672,24.34083008,88.574,88.51,8.74354623]
[1773160281367,24.34083008,88.574,88.512,10.27805458]
[1773160281574,24.34083008,88.574,88.511,10.27805458]
[1773160282373,24.34083008,88.574,88.528,10.163]
[1773160283479,24.34083008,88.574,88.512,10.27805458]
[1773160283774,24.34083008,88.574,88.53,3.26274328]
[1773160284478,24.34083008,88.574,88.53,13.42574328]
[1773160284976,24.34850739,88.555,88.51,3.26274328]
[1773160285567,24.34850739,88.555,88.507,10.166]
[1773160285772,3.26274328,88.56,88.507,10.166]
[1773160285773,24.34842811,88.551,88.507,10.166]
[1773160285966,24.34842811,88.551,88.5,3.26274328]
[1773160286171,24.36202048,88.539,88.49,3.26274328]
[1773160286373,24.36202048,88.539,88.5,3.26274328]
[1773160286574,24.36202048,88.539,88.5,13.42874328]
[1773160287681,24.36202048,88.539,88.5,10.166]
[1773160288776,24.36202048,88.539,88.484,10.27805458]
[1773160288986,24.34262977,88.535,88.463,10.27805458]
[1773160289176,24.34262977,88.535,88.46,8.74736409]
[1773160289375,24.34255156,88.518,88.461,10.171]
[1773160289579,24.34255156,88.518,88.44,10.27805458]
[1773160289883,24.34255156,88.518,88.436,10.27805458]
[1773160290078,24.34693486,88.494,88.437,10.174]
[1773160290283,24.34693486,88.494,88.419,10.27805458]
[1773160291179,24.34685937,88.486,88.42,10.176]
[1773160291383,8.74736409,88.48,88.405,10.27805458]
[1773160291686,24.34685937,88.47,88.4,8.74736409]
[1773160291984,24.34685937,88.47,88.405,10.27805458]
[1773160292180,24.34685937,88.47,88.407,10.27805458]
[1773160292578,24.22778968,88.519,88.42,8.74736409]
[1773160292778,24.22778968,88.519,88.433,10.27805458]
[1773160293181,24.22766754,88.508,88.433,10.27805458]
[1773160293379,24.22766754,88.508,88.44,8.74736409]
[1773160293881,24.22766754,88.508,88.459,10.171]
[1773160294184,24.20217521,88.539,88.46,8.74736409]
[1773160294684,24.20217521,88.538,88.485,10.168]
[1773160294983,24.20217521,88.538,88.464,10.31909462]
[1773160295584,24.20217521,88.538,88.48,8.74736409]
[1773160295788,24.20204906,88.56,88.48,8.74736409]
[1773160296473,24.16801011,88.558,88.5,0.03250841]
[1773160296873,24.16801011,88.558,88.5,8.7798725]
[1773160297674,24.16801011,88.558,88.5,0.03250841]
[1773160299286,24.17779604,88.553,88.5,0.03250841]
[1773160301782,24.17779604,88.553,88.5,8.7798725]
[1773160301978,24.17779604,88.553,88.5,0.03250841]
[1773160302887,24.22463886,88.552,88.5,0.03250841]
[1773160303991,24.22453152,88.549,88.5,0.03250841]
[1773160304192,24.22453152,88.549,88.466,10.31909462]
[1773160304687,24.42775237,88.521,88.462,20.49009462]
[1773160304893,24.42775237,88.521,88.462,10.171]
[1773160305088,24.42775237,88.521,88.46,8.74736409]
[1773160305290,24.42775237,88.521,88.478,10.169]
[1773160306490,20.313,88.588,88.46,8.74736409]
[1773160306491,24.44388071,88.545,88.487,10.168]
[1773160308191,8.74736409,88.57,88.479,10.169]
[1773160308192,24.44666261,88.535,88.479,10.169]
[1773160308592,24.44666261,88.535,88.46,8.74736409]
[1773160308990,24.44666261,88.526,88.471,10.17]
[1773160309998,20.313,88.588,88.49,10.168]
[1773160309999,24.44663971,88.543,88.49,10.168]
[1773160311396,24.44761621,88.541,88.461,10.31909462]
[1773160311596,24.44761621,88.541,88.45,13.7753534]
[1773160311597,24.44761621,88.541,88.45,10.31909462]
[1773160311796,24.44761621,88.541,88.447,10.31909462]
[1773160312197,24.44761621,88.541,88.448,10.31909462]
[1773160312401,24.44631342,88.52,88.464,10.171]
[1773160313097,24.44631342,88.52,88.448,10.31909462]
[1773160313098,24.44631342,88.52,88.473,10.17]
[1773160313800,24.44629188,88.517,88.464,10.171]
[1773160313991,24.44629188,88.517,88.44,19.06645871]
[1773160314196,24.44629188,88.517,88.443,10.31909462]
[1773160314396,24.44629188,88.517,88.441,10.31909462]